bitfinex-derivatives/quotes_BNBF0:USTF0_20251002
["timestamp","ask_amount","ask_price","bid_price","bid_amount"]
[1759386060299,0.86971329,1034.3,1033.9,1.373]
[1759386060598,0.86971329,1034.2,1033.9,1.373]
[1759386063295,0.86971329,1034.3,1033.9,1.373]
[1759386067699,0.86971329,1034.3,1033.9,2.478]
[1759386070604,0.86971329,1034.2,1033.9,2.478]
[1759386072403,0.86971329,1034.3,1033.9,2.478]
[1759386074205,0.86971329,1034.3,1033.9,4.013]
[1759386076407,0.86971329,1034.3,1033.9,2.64]
[1759386078512,1.03799874,1034.4,1033.9,2.64]
[1759386079908,1.03799874,1034.4,1034.0,1.002]
[1759386082119,1.03799874,1034.4,1034.0,2.196]
[1759386084411,0.86971329,1034.2,1034.0,2.196]
[1759386084614,0.86971329,1034.1,1034.0,2.196]
[1759386087814,1.47043135,1034.4,1034.0,2.196]
[1759386087815,0.86971329,1034.2,1034.0,2.196]
[1759386089120,0.86971329,1034.1,1034.0,2.196]
[1759386092023,0.86971329,1034.2,1034.0,2.196]
[1759386096828,0.86971329,1034.1,1034.0,2.196]
[1759386097324,0.86971329,1034.1,1034.0,1.194]
[1759386098327,0.86971329,1034.2,1034.0,1.194]
[1759386100432,0.86971329,1034.2,1034.0,2.488]
[1759386108540,0.86971329,1034.3,1034.0,2.488]
[1759386109247,0.86971329,1034.2,1034.0,2.488]
[1759386109448,0.86971329,1034.3,1034.0,2.488]
[1759386117747,0.86971329,1034.2,1034.0,2.488]
[1759386119751,0.86971329,1034.3,1034.0,2.488]
[1759386121152,1.03799874,1034.4,1034.0,2.488]
[1759386123549,1.03799874,1034.4,1034.0,1.194]
[1759386125951,1.03799874,1034.4,1034.1,1.23]
[1759386127052,0.86971329,1034.3,1034.1,1.23]
[1759386127556,0.16828545,1034.4,1034.1,1.23]
[1759386133060,0.86971329,1034.3,1034.1,1.23]
[1759386134261,1.3021459,1034.3,1034.1,1.23]
[1759386135759,1.47043135,1034.4,1034.1,1.23]
[1759386135961,1.3021459,1034.3,1034.1,1.23]
[1759386138965,1.47043135,1034.4,1034.1,1.23]
[1759386140861,1.3021459,1034.3,1034.1,1.23]
[1759386142687,1.3021459,1034.2,1034.1,1.23]
[1759386143168,1.3021459,1034.2,1034.0,2.594]
[1759386144463,0.16828545,1034.4,1034.0,2.594]
[1759386144464,0.86881569,1034.1,1034.0,2.594]
[1759386145666,1.3021459,1034.2,1034.0,2.594]
[1759386149569,0.86887123,1034.1,1034.0,2.594]
[1759386150170,1.3021459,1034.3,1034.0,2.594]
[1759386150366,1.3021459,1034.2,1034.0,2.594]
[1759386153371,1.3021459,1034.1,1034.0,1.093]
[1759386154470,1.3021459,1034.2,1034.0,1.093]
[1759386158279,1.3021459,1034.3,1034.0,1.093]
[1759386158579,0.16828545,1034.4,1034.0,1.093]
[1759386161380,1.30118739,1034.1,1034.0,1.093]
[1759386161685,0.16828545,1034.4,1034.0,1.093]
[1759386161881,0.86738468,1034.1,1034.0,1.093]
[1759386162780,0.86738468,1034.1,1033.9,0.962]
[1759386163985,0.86738468,1034.0,1033.9,0.962]
[1759386164785,1.30107702,1034.2,1033.9,0.962]
[1759386165084,1.30107702,1034.1,1033.9,0.962]
[1759386173687,0.86647393,1034.0,1033.9,0.962]
[1759386173888,0.16828545,1034.4,1033.9,0.962]
[1759386173889,1.30107702,1034.1,1033.9,0.962]
[1759386174083,1.30107702,1034.1,1033.7,1.605]
[1759386174386,0.86648637,1033.9,1033.7,1.605]
[1759386175888,1.03477182,1034.4,1033.7,1.605]
[1759386176084,0.16828545,1034.4,1033.7,1.605]
[1759386177289,0.16828545,1034.4,1033.8,1.314]
[1759386178284,1.03477182,1034.4,1033.8,1.314]
[1759386180488,0.86648637,1034.3,1033.8,1.314]
[1759386180692,0.86648637,1034.2,1033.8,1.314]
[1759386181191,1.46936247,1034.4,1033.8,1.314]
[1759386181192,0.86648637,1034.1,1033.8,1.314]
[1759386181587,0.86648637,1033.9,1033.8,1.314]
[1759386183089,1.30107702,1034.0,1033.8,1.314]
[1759386185389,1.30107702,1033.9,1033.8,1.314]
[1759386188792,1.30107702,1034.0,1033.8,1.314]
[1759386189792,1.30107702,1034.1,1033.8,1.314]
[1759386189997,0.16828545,1034.4,1033.8,1.314]
[1759386189998,1.30107702,1034.0,1033.8,1.314]
[1759386196009,1.30107702,1034.1,1033.8,1.314]
[1759386196410,1.30107702,1034.0,1033.7,1.605]
[1759386196709,0.8673893,1033.8,1033.7,1.605]
[1759386198812,0.8673893,1034.0,1033.7,1.605]
[1759386199008,0.8673893,1033.9,1033.7,1.605]
[1759386199309,0.8673893,1033.9,1033.8,1.135]
[1759386200713,0.8673893,1034.0,1033.8,1.135]
[1759386201110,0.8673893,1033.9,1033.8,1.135]
[1759386205313,1.30107702,1034.1,1033.8,1.135]
[1759386206618,1.30107702,1034.0,1033.8,1.135]
[1759386207317,0.86824457,1033.9,1033.8,1.135]
[1759386213616,1.30107702,1034.0,1033.8,1.135]
[1759386216818,1.30107702,1034.1,1033.8,1.135]
[1759386217321,0.86924411,1034.0,1033.8,1.135]
[1759386217920,0.86924411,1033.9,1033.8,1.135]
[1759386219722,1.30107702,1034.0,1033.8,1.135]
[1759386220018,0.8692533,1033.9,1033.8,1.135]
[1759386220522,1.30107702,1034.0,1033.8,1.135]
[1759386221222,0.86913398,1033.9,1033.8,1.135]
[1759386222220,0.86913398,1033.9,1033.5,1.322]
[1759386222719,0.86913398,1033.8,1033.5,2.921]
[1759386223126,0.86913398,1033.9,1033.5,2.921]
[1759386223424,0.86913398,1033.8,1033.5,2.921]
[1759386223921,0.86913398,1033.9,1033.5,2.921]
[1759386226928,0.86913398,1034.0,1033.5,2.921]
[1759386228027,0.86913398,1033.9,1033.5,2.921]
[1759386228224,0.86913398,1034.0,1033.5,2.921]
[1759386236629,0.86913398,1033.9,1033.5,2.921]
[1759386238935,0.86913398,1033.7,1033.5,2.921]
[1759386239447,0.86913398,1033.8,1033.5,2.921]
[1759386243141,1.03750736,1033.8,1033.5,2.921]
[1759386247144,0.16837338,1033.8,1033.5,2.921]
[1759386250546,1.03750736,1033.8,1033.5,2.921]
[1759386250745,0.86913398,1033.7,1033.5,2.921]
[1759386259852,0.86913398,1033.7,1033.5,1.322]
[1759386266361,1.03750736,1033.8,1033.5,1.322]
[1759386266555,0.86913398,1033.7,1033.5,1.322]
[1759386268679,0.86913398,1033.6,1033.5,1.322]
[1759386269359,0.86913398,1033.7,1033.5,1.322]
[1759386271167,0.86913398,1033.6,1033.5,1.322]
[1759386271770,0.86913398,1033.6,1033.1,0.993]
[1759386273570,0.86913398,1033.7,1033.1,0.993]
[1759386278277,0.16837338,1033.8,1033.1,0.993]
[1759386279978,0.16837338,1033.8,1032.5,34.94876052]
[1759386282780,0.86913398,1033.7,1032.6,1.041]
[1759386282977,0.86913398,1033.7,1032.6,4.96370159]
[1759386284477,1.03750736,1033.8,1032.6,4.96370159]
[1759386286381,0.86913398,1033.7,1032.6,4.96370159]
[1759386291483,0.16837338,1033.8,1032.6,4.96370159]
[1759386293187,1.03750736,1033.8,1032.6,4.96370159]
[1759386295791,0.16837338,1033.8,1032.6,4.96370159]
[1759386297788,0.16837338,1033.8,1032.6,3.92270159]
[1759386300096,0.16837338,1033.8,1032.7,1.385]
[1759386303096,1.03750736,1033.8,1032.7,1.385]
[1759386304394,0.86913398,1033.7,1032.7,1.385]
[1759386304897,0.86913398,1033.6,1032.7,1.385]
[1759386305299,0.86913398,1033.5,1032.7,1.385]
[1759386305500,0.86913398,1033.6,1032.7,1.385]
[1759386306196,0.86913398,1033.5,1032.7,1.385]
[1759386306597,0.86913398,1033.6,1032.7,1.385]
[1759386307501,0.86913398,1033.4,1032.7,1.385]
[1759386307700,0.86913398,1033.5,1032.7,1.385]
[1759386309697,0.16837338,1033.8,1032.7,1.385]
[1759386309698,1.03750736,1033.8,1032.7,1.385]
[1759386314202,0.86913398,1033.5,1032.7,1.385]
[1759386315202,0.86913398,1033.5,1032.7,2.713]
[1759386316802,0.86913398,1033.6,1032.7,2.713]
[1759386328911,0.86913398,1033.6,1032.8,1.422]
[1759386329116,0.86913398,1033.7,1032.8,1.422]
[1759386334027,0.86913398,1033.7,1032.9,1.313]
[1759386336131,0.86913398,1033.6,1032.9,1.313]
[1759386336429,0.86913398,1033.5,1032.9,1.313]
[1759386337829,0.86913398,1033.6,1032.9,1.313]
[1759386339135,0.86913398,1033.6,1033.0,1.486]
[1759386339832,0.86913398,1033.5,1033.0,1.486]
[1759386340235,0.86913398,1033.6,1033.0,1.486]
[1759386349245,0.86913398,1033.7,1033.0,1.486]
[1759386351945,0.86913398,1033.6,1033.0,1.486]
[1759386352245,0.86913398,1033.7,1033.0,1.486]
[1759386354584,1.03750736,1033.8,1033.0,1.486]
[1759386354750,2.15263528,1034.7,1033.0,1.486]
[1759386354751,0.86913398,1033.9,1033.0,1.486]
[1759386355346,1.03750899,1034.0,1033.0,1.486]
[1759386357650,0.16837501,1034.0,1033.0,1.486]
[1759386359550,1.03750899,1034.0,1033.0,1.486]
[1759386359750,0.16837501,1034.0,1033.0,1.486]
[1759386363352,0.16837501,1034.0,1033.1,1.277]
[1759386364054,0.16837501,1034.0,1033.2,1.331]
[1759386366556,0.16837501,1034.0,1033.3,1.447]
[1759386380663,0.16837501,1034.0,1033.4,1.147]
[1759386388192,0.86913398,1034.4,1033.4,1.147]
[1759386388375,0.16831393,1034.2,1033.4,1.147]
[1759386388573,0.16831393,1034.2,1033.5,1.324]
[1759386390989,0.16831393,1034.2,1033.6,1.618]
[1759386397385,1.03744791,1034.2,1033.6,1.618]
[1759386398184,0.16831393,1034.2,1033.6,1.618]
[1759386403087,0.16831393,1034.2,1033.7,1.363]
[1759386404892,0.16831393,1034.2,1033.8,1.514]
[1759386405292,1.03744791,1034.2,1033.8,1.514]
[1759386411092,0.86913398,1034.1,1033.8,1.514]
[1759386412592,1.03744791,1034.2,1033.8,1.514]
[1759386418106,0.86913398,1034.1,1033.8,1.514]
[1759386418703,0.86913398,1034.1,1033.9,1.062]
[1759386419206,1.03744791,1034.2,1033.9,1.062]
[1759386425211,0.86913398,1034.2,1033.9,1.062]
[1759386425415,2.15263528,1036.7,1033.9,1.062]
[1759386425710,0.16823745,1035.0,1033.9,1.062]
[1759386425914,2.15263528,1036.5,1033.9,1.062]
[1759386426110,0.16813584,1036.1,1033.9,1.70865529]
[1759386426313,0.16813584,1036.1,1033.9,1.062]
[1759386433217,0.16813584,1036.1,1034.0,1.55]
[1759386436820,0.16813584,1036.1,1034.1,1.332]
[1759386438622,0.16813584,1036.1,1034.2,1.661]
[1759386445030,0.16813584,1036.1,1034.3,1.252]
[1759386445328,1.29242516,1035.6,1034.3,1.252]
[1759386446827,0.16813584,1036.1,1034.3,1.252]
[1759386446828,1.29242516,1035.5,1034.3,1.252]
[1759386447027,1.29242516,1035.4,1034.3,1.252]
[1759386453033,1.29242516,1035.3,1034.3,1.252]
[1759386453339,3.80149408,1035.3,1034.3,1.252]
[1759386455340,0.86214299,1035.1,1034.3,1.252]
[1759386459541,0.86214299,1035.1,1034.4,1.626]
[1759386460744,0.86214299,1035.2,1034.4,1.626]
[1759386462047,3.37121191,1035.3,1034.4,1.626]
[1759386468657,0.86214299,1035.2,1034.4,1.626]
[1759386470358,0.86214299,1035.1,1034.4,1.626]
[1759386471653,0.86214299,1035.2,1034.4,1.626]
[1759386478232,0.86214299,1035.1,1034.4,1.626]
[1759386479566,0.86214299,1035.1,1034.5,1.593]
[1759386482870,0.86214299,1035.0,1034.5,1.593]
[1759386487771,0.86214299,1034.9,1034.5,1.593]
[1759386488671,0.86214299,1034.9,1034.6,1.393]
[1759386497293,0.86214299,1034.8,1034.6,1.393]
[1759386497480,0.86214299,1034.9,1034.6,1.393]
[1759386499786,0.86214299,1035.0,1034.6,1.393]
[1759386500287,0.86214299,1035.1,1034.6,1.393]
[1759386503292,2.50906892,1035.3,1034.6,1.393]
[1759386508494,3.37121191,1035.3,1034.6,1.393]
[1759386508693,0.86214299,1035.2,1034.6,1.393]
[1759386509495,3.37121191,1035.3,1034.6,1.393]
[1759386509695,0.86214299,1035.2,1034.6,1.393]
[1759386510097,3.37121191,1035.3,1034.6,1.393]
[1759386513000,3.37121191,1035.3,1034.7,1.31]
[1759386522008,3.37121191,1035.3,1034.8,1.739]
[1759386529006,2.50906892,1035.3,1034.8,1.739]
[1759386529208,3.37121191,1035.3,1034.8,1.739]
[1759386529812,0.86214299,1035.2,1034.8,1.739]
[1759386530112,0.86214299,1035.1,1034.8,1.739]
[1759386530508,0.86214299,1035.2,1034.8,1.739]
[1759386531409,0.86214299,1035.1,1034.8,1.739]
[1759386534617,0.86214299,1035.0,1034.8,1.739]
[1759386536116,0.86214299,1035.0,1034.7,1.31]
[1759386545423,0.86214299,1035.1,1034.7,1.31]
[1759386549225,0.86214299,1035.2,1034.7,1.31]
[1759386549822,1.29242516,1035.4,1034.7,1.31]
[1759386549823,0.86214299,1035.1,1034.7,1.31]
[1759386552823,0.86214299,1035.2,1034.7,1.31]
[1759386555129,0.86214299,1035.1,1034.7,1.31]
[1759386555826,3.36748164,1035.4,1034.7,1.31]
[1759386555827,4.22962463,1035.4,1034.7,1.31]
[1759386561533,4.22962463,1035.4,1034.8,1.513]
[1759386563837,0.86214299,1035.2,1034.8,1.513]
[1759386567141,0.86214299,1035.3,1034.8,1.513]
[1759386567541,0.86214299,1035.9,1034.8,1.513]
[1759386567943,0.86214299,1036.0,1034.8,1.513]
[1759386570346,0.86214299,1035.9,1034.8,1.513]
[1759386571544,0.86214299,1036.0,1034.8,1.513]
[1759386571747,1.03027883,1036.1,1034.8,1.513]
[1759386571947,0.16813584,1036.1,1034.8,1.513]
[1759386572850,0.86214299,1036.5,1034.8,1.513]
[1759386573059,0.16800597,1036.3,1034.9,0.64665529]
[1759386573344,0.16800597,1036.3,1034.8,2.15965529]
[1759386574343,0.16800597,1036.3,1034.8,1.513]
[1759386575047,0.16800597,1036.3,1034.8,2.15965529]
[1759386578150,0.16800597,1036.3,1034.8,1.513]
[1759386578368,0.16800597,1036.3,1034.8,2.15965529]
[1759386579953,0.86214299,1037.2,1034.8,2.15965529]
[1759386580151,0.86214299,1037.3,1034.8,2.15965529]
[1759386580348,0.16796623,1036.4,1034.8,2.15965529]
[1759386580552,0.86214299,1037.3,1034.8,0.64665529]
[1759386580748,0.86214299,1037.3,1034.9,0.64665529]
[1759386580749,0.16795569,1036.5,1034.9,0.64665529]
[1759386581149,0.86214299,1037.3,1034.9,0.64665529]
[1759386581353,0.16795732,1036.4,1034.9,0.64665529]
[1759386581649,0.86214299,1037.4,1034.9,0.64665529]
[1759386581851,0.16795772,1036.4,1034.9,0.64665529]
[1759386582048,0.86214299,1037.4,1034.8,0.64665529]
[1759386582251,0.86214299,1037.4,1034.7,0.64665529]
[1759386582555,0.16797353,1036.1,1034.7,0.64665529]
[1759386582756,0.86214299,1037.3,1034.6,0.64665529]
[1759386583051,100.0,1038.6,1034.3,6.19365768]
[1759386583052,0.1679865,1036.8,1034.5,0.64665529]
[1759386583955,0.1679865,1036.8,1034.6,1.67]
[1759386587456,0.1679865,1036.8,1034.8,0.64665529]
[1759386587653,0.1679865,1036.8,1034.7,0.64665529]
[1759386588357,0.1679865,1036.8,1034.6,2.31665529]
[1759386588558,0.1679865,1036.8,1034.7,0.64665529]
[1759386589354,0.1679865,1036.8,1034.6,2.31665529]
[1759386589658,0.1679865,1036.8,1034.7,0.64665529]
[1759386591258,0.1679865,1036.8,1034.6,2.31665529]
[1759386593059,0.1679865,1036.8,1034.7,1.407]
[1759386601164,0.1679865,1036.8,1034.8,1.317]
[1759386601460,0.86214299,1036.7,1034.8,1.317]
[1759386602366,0.86214299,1036.6,1034.8,1.317]
[1759386604664,0.86214299,1036.7,1034.8,1.317]
[1759386605271,1.03012949,1036.8,1034.8,1.317]
[1759386608373,0.86214299,1036.7,1034.8,1.317]
[1759386609769,0.86214299,1036.6,1034.8,1.317]
[1759386610070,0.86214299,1036.5,1034.8,1.317]
[1759386611273,0.86214299,1036.4,1034.8,1.317]
[1759386611473,0.86214299,1036.5,1034.9,1.475]
[1759386612169,0.86214299,1036.4,1034.9,1.475]
[1759386612873,0.86214299,1036.5,1034.9,1.475]
[1759386613073,0.86214299,1036.4,1034.9,1.475]
[1759386613670,0.86214299,1036.5,1034.9,1.475]
[1759386613974,0.86214299,1036.4,1034.9,1.475]
[1759386616172,0.86214299,1036.3,1034.9,1.475]
[1759386616779,0.86214299,1036.3,1035.0,1.753]
[1759386617074,0.86214299,1036.2,1035.0,1.753]
[1759386621987,0.86214299,1036.3,1035.0,1.753]
[1759386622282,0.86214299,1036.5,1035.0,1.753]
[1759386623382,0.86214299,1036.4,1035.0,1.753]
[1759386624180,0.86214299,1036.3,1035.0,1.753]
[1759386624478,0.86214299,1036.4,1035.0,1.753]
[1759386625382,0.86214299,1036.3,1035.0,1.753]
[1759386626579,0.86214299,1036.1,1035.0,1.753]
[1759386626881,0.86214299,1036.4,1035.0,1.753]
[1759386628084,0.86214299,1036.3,1035.0,1.753]
[1759386628281,0.86214299,1036.2,1035.0,1.753]
[1759386628481,0.86214299,1036.3,1035.0,1.753]
[1759386628685,0.86214299,1036.2,1035.0,1.753]
[1759386628993,0.86214299,1036.3,1035.0,1.753]
[1759386629584,0.86214299,1036.2,1035.0,1.753]
[1759386631087,0.86214299,1036.2,1035.1,1.716]
[1759386632088,0.86214299,1036.3,1035.1,1.716]
[1759386632284,0.86214299,1036.4,1035.1,1.716]
[1759386632788,0.86214299,1036.5,1035.1,1.716]
[1759386633484,1.29242516,1036.7,1035.1,1.716]
[1759386633485,0.86214299,1036.4,1035.1,1.716]
[1759386633684,0.86214299,1036.7,1035.1,1.716]
[1759386634488,0.86214299,1036.7,1035.2,1.163]
[1759386634893,0.1679865,1036.8,1035.3,1.67]
[1759386635492,0.86214299,1036.6,1035.3,1.67]
[1759386638298,0.86214299,1036.4,1035.3,1.67]
[1759386641003,0.86214299,1036.6,1035.3,1.67]
[1759386641408,0.86214299,1036.5,1035.3,1.67]
[1759386641628,0.1679865,1036.8,1035.3,1.67]
[1759386647008,0.1679865,1036.8,1035.4,1.582]
[1759386648109,0.86214299,1037.8,1035.4,1.582]
[1759386648406,0.16790221,1037.0,1035.4,1.582]
[1759386648710,0.86214299,1037.7,1035.4,2.22123136]
[1759386648907,0.16786738,1037.3,1035.4,2.22123136]
[1759386649507,0.16786738,1037.3,1035.5,0.63923136]
[1759386650311,0.16784957,1037.2,1035.5,0.63923136]
[1759386651310,0.16784957,1037.2,1035.4,2.22123136]
[1759386654516,0.16784957,1037.2,1035.5,1.418]
[1759386654716,9.09000225,1038.1,1035.5,1.418]
[1759386655012,0.16783257,1037.4,1035.6,0.63923136]
[1759386655216,0.16783257,1037.4,1035.5,2.05723136]
[1759386656517,0.16783257,1037.4,1035.5,1.418]
[1759386662218,0.16783257,1037.4,1035.5,2.05723136]
[1759386663121,0.16783257,1037.4,1035.5,1.418]
[1759386668427,0.16783257,1037.4,1035.6,0.63247643]
[1759386669427,0.16783257,1037.4,1035.5,1.418]
[1759386669928,0.16783257,1037.4,1035.6,1.49]
[1759386677033,0.16783257,1037.4,1035.7,1.752]
[1759386677730,0.16783257,1037.4,1035.8,1.417]
[1759386681536,0.16783257,1037.4,1035.9,1.441]
[1759386682333,1.02997556,1037.4,1035.9,1.441]
[1759386682537,0.16783257,1037.4,1035.9,1.441]
[1759386683239,1.02997556,1037.4,1035.9,1.441]
[1759386684538,1.02997556,1037.4,1036.0,1.21]
[1759386686149,0.86214299,1037.3,1036.0,1.21]
[1759386687941,1.02997556,1037.4,1036.0,1.21]
[1759386688343,0.16783257,1037.4,1036.0,1.21]
[1759386690348,1.02997556,1037.4,1036.0,1.21]
[1759386693850,0.16783257,1037.4,1036.0,1.21]
[1759386698051,1.02997556,1037.4,1036.0,1.21]
[1759386698449,0.86214299,1037.2,1036.0,1.21]
[1759386699254,0.86214299,1037.1,1036.0,1.21]
[1759386699468,0.86214299,1037.2,1036.0,1.21]
[1759386700556,1.02997556,1037.4,1036.0,1.21]
[1759386701256,0.86214299,1037.3,1036.0,1.21]
[1759386701454,0.86214299,1037.3,1036.1,1.715]
[1759386701656,1.02997556,1037.4,1036.1,1.715]
[1759386705656,0.86214299,1037.2,1036.1,1.715]
[1759386706761,0.86214299,1037.1,1036.1,1.715]
[1759386707261,0.86214299,1037.0,1036.1,1.715]
[1759386707556,0.86214299,1036.9,1036.1,1.715]
[1759386709262,0.86214299,1036.8,1036.1,1.715]
[1759386709464,0.86214299,1036.9,1036.1,1.715]
[1759386712063,0.86214299,1037.1,1036.1,1.715]
[1759386712266,0.86214299,1037.2,1036.1,1.715]
[1759386712667,0.86214299,1036.9,1036.1,1.715]
[1759386715772,0.86214299,1037.2,1036.1,1.715]
[1759386715972,0.86214299,1037.0,1036.1,1.715]
[1759386717171,0.86214299,1036.9,1036.1,1.715]
[1759386717373,0.86214299,1036.8,1036.1,1.715]
[1759386718474,0.86214299,1036.7,1036.1,1.715]
[1759386718774,0.86214299,1036.8,1036.1,1.715]
[1759386719472,0.86214299,1037.1,1036.1,1.715]
[1759386719671,0.86214299,1037.0,1036.1,1.715]
[1759386721476,0.86214299,1036.9,1036.1,1.715]
[1759386721676,0.86214299,1036.9,1036.2,1.255]
[1759386723478,0.86214299,1036.8,1036.2,1.255]
[1759386724875,0.86214299,1036.9,1036.2,1.255]
[1759386725275,0.86214299,1036.8,1036.2,1.255]
[1759386727381,0.86214299,1036.8,1036.3,1.296]
[1759386729182,0.86214299,1036.9,1036.3,1.296]
[1759386729581,0.86214299,1036.7,1036.3,1.296]
[1759386733685,0.86214299,1036.7,1036.4,1.878]
[1759386737288,1.02997556,1037.4,1036.4,1.878]
[1759386737486,0.16783257,1037.4,1036.4,1.878]
[1759386740190,0.16783257,1037.4,1036.5,1.786]
[1759386741199,1.02997556,1037.4,1036.5,1.786]
[1759386741491,0.86214299,1037.3,1036.5,1.786]
[1759386742189,1.02997556,1037.4,1036.5,1.786]
[1759386744788,1.02997556,1037.4,1036.6,1.267]
[1759386745289,0.16783257,1037.4,1036.6,1.267]
[1759386746896,0.16783257,1037.4,1036.7,1.439]
[1759386758803,1.02997556,1037.4,1036.7,1.439]
[1759386760402,0.16783257,1037.4,1036.7,1.439]
[1759386761402,1.02997556,1037.4,1036.7,1.439]
[1759386761704,0.16783257,1037.4,1036.7,1.439]
[1759386763104,1.02997556,1037.4,1036.7,1.439]
[1759386763704,0.16783257,1037.4,1036.7,1.439]
[1759386763908,1.02997556,1037.4,1036.8,1.896]
[1759386767714,0.16783257,1037.4,1036.8,1.896]
[1759386767914,0.16783257,1037.4,1036.9,1.787]
[1759386770117,0.86214299,1038.0,1036.9,1.787]
[1759386770445,0.16775895,1037.6,1036.9,1.787]
[1759386770813,6.38293285,1038.1,1036.9,1.787]
[1759386771017,0.1677549,1037.6,1036.9,1.787]
[1759386771215,6.38293285,1038.1,1036.9,1.787]
[1759386772014,0.16774763,1037.9,1036.9,1.787]
[1759386779929,0.86214299,1038.5,1036.9,1.787]
[1759386780126,0.86214299,1039.1,1036.9,1.787]
[1759386780330,0.1676967,1038.3,1036.9,1.787]
[1759386780633,6.15382194,1039.2,1036.9,1.787]
[1759386780931,0.16765307,1038.3,1036.9,1.787]
[1759386781127,6.15382194,1039.2,1036.9,1.787]
[1759386781430,0.16764338,1038.7,1036.9,1.787]
[1759386782928,1.02978637,1038.7,1036.9,1.787]
[1759386783431,0.16764338,1038.7,1036.9,1.787]
[1759386791940,0.16764338,1038.7,1036.6,1.267]
[1759386792536,0.16764338,1038.7,1036.7,3.268]
[1759386793639,0.16764338,1038.7,1036.8,1.845]
[1759386803040,0.16764338,1038.7,1036.9,1.543]
[1759386806950,0.16764338,1038.7,1037.0,1.88]
[1759386818653,0.16764338,1038.7,1037.1,1.604]
[1759386821061,0.86214299,1038.5,1037.1,1.604]
[1759386822561,0.86214299,1038.4,1037.2,1.457]
[1759386823464,0.86214299,1038.5,1037.2,1.457]
[1759386823665,0.86214299,1038.2,1037.2,1.457]
[1759386824066,0.86214299,1038.2,1037.3,1.859]
[1759386825464,0.86214299,1038.1,1037.3,1.859]
[1759386825866,0.86214299,1038.0,1037.3,1.859]
[1759386826266,0.86214299,1037.7,1037.3,1.859]
[1759386826468,0.86214299,1037.6,1037.3,1.859]
[1759386826869,0.86214299,1037.7,1037.3,1.859]
[1759386827667,0.16764338,1038.7,1037.3,1.859]
[1759386827867,0.86214299,1038.4,1037.3,1.859]
[1759386829470,0.86214299,1038.3,1037.3,1.859]
[1759386830770,0.86214299,1038.4,1037.3,1.859]
[1759386833378,0.86214299,1038.2,1037.3,1.859]
[1759386833577,0.86214299,1038.3,1037.3,1.859]
[1759386834276,0.86214299,1038.0,1037.3,1.859]
[1759386834478,0.86214299,1038.1,1037.3,1.859]
[1759386834674,0.86214299,1038.2,1037.3,1.859]
[1759386834872,0.86214299,1038.1,1037.3,1.859]
[1759386836787,0.86214299,1038.0,1037.3,1.859]
[1759386837182,0.86214299,1038.1,1037.3,1.859]
[1759386837384,0.86214299,1038.0,1037.3,1.859]
[1759386837578,0.86214299,1037.9,1037.3,1.859]
[1759386837882,0.86214299,1037.4,1037.3,1.859]
[1759386838082,0.86214299,1037.5,1037.3,1.859]
[1759386838279,0.86214299,1037.6,1037.3,1.859]
[1759386839082,0.86214299,1037.6,1036.9,1.543]
[1759386839579,0.86214299,1037.7,1036.9,1.543]
[1759386841186,0.86214299,1037.8,1036.9,1.543]
[1759386841394,0.86214299,1037.7,1036.9,1.543]
[1759386841582,0.86214299,1037.5,1036.9,1.543]
[1759386842486,0.86214299,1037.5,1036.9,3.333]
[1759386843186,0.86214299,1037.7,1036.9,3.333]
[1759386843583,0.86214299,1037.8,1036.9,3.333]
[1759386843786,0.86214299,1038.0,1036.9,3.333]
[1759386844082,0.86214299,1037.7,1036.9,3.333]
[1759386844282,0.86214299,1037.8,1036.9,3.333]
[1759386844486,0.86214299,1037.6,1036.9,3.333]
[1759386844786,0.86214299,1037.5,1036.9,3.333]
[1759386845008,0.86214299,1037.6,1036.9,3.333]
[1759386847983,0.86214299,1037.7,1036.9,3.333]
[1759386848382,0.86214299,1037.8,1036.9,3.333]
[1759386848687,0.86214299,1037.7,1036.9,3.333]
[1759386849183,0.86214299,1037.8,1036.9,3.333]
[1759386849887,0.86214299,1037.7,1036.9,3.333]
[1759386850486,0.86214299,1038.0,1036.9,3.333]
[1759386850686,0.16764338,1038.7,1036.9,3.333]
[1759386850687,0.86214299,1038.1,1036.9,3.333]
[1759386852788,0.86214299,1038.2,1036.9,3.333]
[1759386853183,0.86214299,1038.2,1036.9,1.79]
[1759386855387,0.86214299,1038.2,1036.8,1.405]
[1759386856289,0.86214299,1038.2,1036.9,1.809]
[1759386857385,0.86214299,1038.3,1036.9,1.809]
[1759386857888,0.86214299,1038.3,1037.0,1.746]
[1759386858390,0.86214299,1038.4,1037.0,1.746]
[1759386862391,0.86214299,1038.5,1037.0,1.746]
[1759386862589,0.86214299,1038.6,1037.0,1.746]
[1759386862792,1.02978637,1038.7,1037.0,1.746]
[1759386864193,0.86214299,1038.6,1037.0,1.746]
[1759386864490,0.86214299,1038.6,1037.1,1.648]
[1759386865992,1.02978637,1038.7,1037.1,1.648]
[1759386867190,1.02978637,1038.7,1037.2,1.19]
[1759386867191,0.16764338,1038.7,1037.2,1.19]
[1759386867695,1.02978637,1038.7,1037.2,1.19]
[1759386870997,0.16764338,1038.7,1037.2,1.19]
[1759386871996,1.02978637,1038.7,1037.2,1.19]
[1759386873796,0.16764338,1038.7,1037.2,1.19]
[1759386879901,1.02978637,1038.7,1037.2,1.19]
[1759386880101,0.86214299,1038.6,1037.2,1.19]
[1759386882401,0.16764338,1038.7,1037.2,1.19]
[1759386884803,0.16764338,1038.7,1037.3,1.727]
[1759386887802,1.02978637,1038.7,1037.3,1.727]
[1759386888904,0.16764338,1038.7,1037.3,1.727]